fUST/lending_fUST_20250501
["ID","MTS","AMOUNT","RATE_DAILY","PERIOD"]
[359459532,1746037839908,-206.0,0.000403,30]
[359459533,1746037839918,-301.5637675,0.00040301,30]
[359459534,1746037839927,-400.0,0.00040304,12]
[359459535,1746037839938,-400.0,0.00040305,12]
[359459536,1746037839948,-400.0,0.00040305,12]
[359459537,1746037839957,-400.0,0.00040305,12]
[359459538,1746037839967,-280.91273208,0.00040305,12]
[359459539,1746037839977,-400.0,0.00040305,12]
[359459540,1746037839986,-400.0,0.00040306,12]
[359459542,1746037839996,-236.74752544,0.00040306,12]
[359459543,1746037840007,-400.0,0.00040306,12]
[359459544,1746037840018,-196.11,0.00040306,12]
[359459545,1746037840028,-301.91,0.00040306,12]
[359459546,1746037840038,-452.46198325,0.00040306,12]
[359459548,1746037840048,-230.31,0.00040306,12]
[359459549,1746037840058,-160.0,0.00040306,2]
[359459550,1746037840067,-432.79,0.00040306,12]
[359459551,1746037840076,-400.0,0.00040306,12]
[359459552,1746037840087,-155.654734,0.00040307,14]
[359459553,1746037840098,-151.0,0.00040307,14]
[359459554,1746037840108,-151.0,0.00040307,14]
[359459555,1746037840121,-151.0,0.00040307,14]
[359459556,1746037840131,-151.0,0.00040307,14]
[359459557,1746037840140,-151.0,0.00040307,14]
[359459558,1746037840149,-151.0,0.00040308,2]
[359459559,1746037840159,-151.0,0.00040308,2]
[359459560,1746037840169,-151.0,0.00040308,2]
[359459561,1746037840179,-151.0,0.00040308,2]
[359459562,1746037840188,-151.0,0.00040308,2]
[359459563,1746037840197,-159.0,0.00040308,20]
[359459564,1746037840207,-151.0,0.00040308,20]
[359459565,1746037840216,-207.5782219,0.00040308,20]
[359459566,1746037840225,-500.0,0.00040308,20]
[359459567,1746037840235,-500.0,0.00040308,20]
[359459568,1746037840245,-500.0,0.00040308,20]
[359459569,1746037840254,-500.0,0.00040308,20]
[359459570,1746037840264,-500.0,0.00040308,20]
[359459571,1746037840273,-500.0,0.00040308,20]
[359459572,1746037840283,-218.36393443,0.00040308,20]
[359459573,1746037840293,-198.0,0.00040308,20]
[359459574,1746037840302,-151.0,0.00040308,20]
[359459576,1746037840311,-198.0,0.00040308,20]
[359459577,1746037840321,-151.0,0.00040308,20]
[359459578,1746037840330,-233.00000015,0.00040308,20]
[359459579,1746037840340,-500.0,0.00040308,60]
[359459580,1746037840350,-500.0,0.00040308,5]
[359459581,1746037840360,-200.0,0.00040311,120]
[359459582,1746037840371,-224.55,0.00040313,12]
[359459583,1746037840380,-400.0,0.00040313,12]
[359459584,1746037840390,-400.0,0.00040313,12]
[359459585,1746037840400,-400.0,0.00040313,12]
[359459587,1746037840410,-400.0,0.00040313,12]
[359459588,1746037840420,-400.0,0.00040313,12]
[359459589,1746037840430,-400.0,0.00040313,12]
[359459590,1746037840440,-393.81,0.00040313,12]
[359459591,1746037840450,-170996.66600565,0.00040313,2]
[359459592,1746037840460,-32948.46924314,0.00040313,3]
[359459593,1746037840469,-182.04053198,0.00040313,3]
[359459594,1746037840479,-6186386.85086785,0.00040314,20]
[359459595,1746037840544,-2227.01761774,0.00040314,20]
[359459596,1746037840750,-24.89630307,0.00040314,20]
[359459597,1746037840762,-79752.57563083,0.00040314,20]
[359459598,1746037840774,-416.65490336,0.00040314,20]
[359459610,1746037843404,-625.0,0.00040314,20]
[359459611,1746037843416,-742.95507456,0.00040314,20]
[359459613,1746037843458,-215.435,0.0004022,2]
[359459614,1746037843468,-337.65145131,0.00040314,20]
[359459615,1746037843516,-18302.99426678,0.00040314,20]
[359459617,1746037843529,-1302.3054421,0.00040314,20]
[359459619,1746037843540,-519.47999996,0.00040314,20]
[359459621,1746037843557,-25957.89687947,0.00040314,20]
[359459632,1746037846418,-7860.11967143,0.00040314,20]
[359459633,1746037846429,-2661.11107146,0.00040314,20]
[359459634,1746037846440,-1255.5,0.00040314,20]
[359459636,1746037846709,-1668.20009691,0.00040314,20]
[359459637,1746037875286,420.826004,0.00035569,2]
[359459648,1746037938357,182.0,0.00027397,3]
[359459692,1746038833161,-206.71076876,0.00027397,2]
[359459693,1746038840106,-259.96290424,0.00027397,2]
[359459694,1746038840131,-169.0,0.00027397,3]
[359459695,1746038840152,-466.673673,0.00033165,2]
[359459696,1746038840175,-250.0,0.00034084,2]
[359459697,1746038840194,-255.120319,0.00036162,2]
[359459698,1746038840216,-171.740447,0.00036328,2]
[359459699,1746038840239,-500.0,0.00036851,7]
[359459700,1746038840259,-72.37072832,0.00036938,7]
[359459701,1746038845123,-427.62927168,0.00036938,7]
[359459702,1746038845147,-562.0,0.00037587,3]
[359459703,1746038845168,-160.0,0.00037603,2]
[359459704,1746038845187,-201.0,0.00037617,3]
[359459705,1746038845206,-400.0,0.00037617,2]
[359459706,1746038845227,-6186.80694703,0.00037618,2]
[359459711,1746038949098,-154.0,0.00027397,3]
[359459714,1746039011637,251.11368052,0.00035287,2]
[359459717,1746039025031,930.81411516,0.00035518,2]
[359459727,1746039032364,-253.80668626,0.00037518,120]
[359459728,1746039032374,-400.0,0.00037617,2]
[359459729,1746039032383,-11055.16340717,0.00037618,2]
[359459730,1746039032394,-154.1030122,0.00038297,4]
[359459731,1746039032404,-157.45,0.00038356,2]
[359459732,1746039032414,-155.96630741,0.00038356,12]
[359459733,1746039032430,-314.36369259,0.00038356,12]
[359459734,1746039032440,-400.0,0.00038356,12]
[359459735,1746039032450,-452.48379162,0.00038356,12]
[359459736,1746039032460,-400.0,0.00038356,12]
[359459737,1746039032469,-400.0,0.00038356,12]
[359459740,1746039032478,-463.09,0.00038356,12]
[359459743,1746039032488,-274.26303769,0.00038356,12]
[359459745,1746039032498,-8.86686248,0.00038356,2]
[359459747,1746039032510,-391.13313752,0.00038356,2]
[359459749,1746039032519,-152.02282915,0.00038356,2]
[359459784,1746039038371,-247.97717085,0.00038356,2]
[359459786,1746039038380,-400.0,0.00038356,2]
[359459788,1746039038390,-500.0,0.00038356,12]
[359459790,1746039038399,-353.43899553,0.00038356,12]
[359459791,1746039038408,-13.94075547,0.00038356,12]
[359459794,1746039038423,-386.05924453,0.00038356,12]
[359459796,1746039038433,-485.0,0.00038356,12]
[359459798,1746039038442,-400.0,0.00038356,12]
[359459800,1746039038452,-400.0,0.00038356,12]
[359459802,1746039038461,-400.0,0.00038356,12]
[359459804,1746039038471,-400.0,0.00038356,12]
[359459806,1746039038480,-400.0,0.00038356,12]
[359459808,1746039038490,-400.0,0.00038356,12]
[359459810,1746039038499,-400.0,0.00038356,12]
[359459812,1746039038509,-341.57600268,0.00038356,12]
[359459814,1746039038518,-400.0,0.00038356,12]
[359459816,1746039038528,-466.673673,0.00038933,2]
[359459818,1746039038538,-367.55518574,0.00039278,5]
[359459819,1746039038548,-538.56,0.000398,2]
[359459820,1746039038557,-313.06,0.00039888,2]
[359459821,1746039038567,-400.0,0.00039888,12]
[359459822,1746039038576,-182.04053198,0.00039902,2]
[359459823,1746039038585,-840.90604152,0.00039912,2]
[359459824,1746039038595,-160.0,0.00039999,2]
[359459825,1746039038604,-474.87320504,0.00039999,12]
[359459826,1746039038614,-174.61919141,0.00039999,15]
[359459827,1746039038623,-676.85,0.00040039,120]
[359459828,1746039038632,-560.0,0.00040224,5]
[359459829,1746039038641,-676.85,0.00040239,120]
[359459830,1746039038651,-403.0,0.00040251,2]
[359459831,1746039038661,-707.0,0.00040251,2]
[359459832,1746039038670,-2000.0,0.000403,26]
[359459833,1746039038680,-2000.0,0.000403,26]
[359459834,1746039038689,-400.0,0.00040301,12]
[359459835,1746039038699,-236.74752544,0.00040301,12]
[359459836,1746039038711,-2273.41184,0.00040301,4]
[359459837,1746039038722,-301.5637675,0.00040301,30]
[359459838,1746039038734,-4537.53906532,0.00040302,3]
[359459841,1746039038745,-6251.73102944,0.00040302,3]
[359459843,1746039038756,-1134.38476633,0.00040304,3]
[359459845,1746039038767,-1562.93275736,0.00040304,3]
[359459847,1746039038779,-191.67735553,0.00040304,12]
[359459850,1746039038791,-266.74690684,0.00040304,12]
[359459852,1746039038805,-133.25309316,0.00040304,12]
[359459854,1746039038818,-400.0,0.00040304,12]
[359459856,1746039038829,-400.0,0.00040305,12]
[359459858,1746039038840,-199.19,0.00040305,12]
[359459860,1746039038850,-280.91273208,0.00040305,12]
[359459862,1746039038861,-9.72038977,0.00040305,12]
[359459865,1746039038874,-294.78529435,0.00040305,12]
[359459867,1746039038886,-95.49431588,0.00040305,12]
[359459869,1746039038897,-452.46198325,0.00040307,12]
[359459871,1746039038906,-230.31,0.00040307,12]
[359459874,1746039038917,-160.0,0.00040308,3]
[359459876,1746039038927,-839.03764985,0.00040308,3]
[359459878,1746039038938,-4014.96813587,0.00040308,3]
[359459880,1746039038952,-1656.95569578,0.00040308,3]
[359459882,1746039038963,-7814.6637868,0.00040308,3]
[359459885,1746039038974,-206.0,0.0004031,30]
[359459887,1746039038986,-400.0,0.00040311,12]
[359459889,1746039038999,-400.0,0.00040311,12]
[359459891,1746039039010,-400.0,0.00040311,12]
[359459893,1746039039021,-400.0,0.00040311,12]
[359459895,1746039039032,-400.0,0.00040311,12]
[359459897,1746039039043,-400.0,0.00040311,12]
[359459898,1746039039054,-393.81,0.00040311,12]
[359459899,1746039039065,-238444.5745079,0.00040312,2]
[359459900,1746039039076,-301.91,0.00040312,12]
[359459901,1746039039086,-432.79,0.00040312,12]
[359459902,1746039039099,-9497.51068285,0.00040313,3]
[359459903,1746039039112,-151.0,0.00040313,14]
[359459904,1746039039122,-151.0,0.00040313,14]
[359459905,1746039039135,-151.0,0.00040313,14]
[359459906,1746039039147,-151.0,0.00040313,14]
[359459907,1746039039157,-151.0,0.00040313,14]
[359459908,1746039039168,-151.0,0.00040313,14]
[359459909,1746039039178,-400.0,0.00040313,12]
[359459910,1746039039189,-224.55,0.00040313,12]
[359459911,1746039039199,-196.11,0.00040313,12]
[359459912,1746039039210,-151.0,0.00040314,14]
[359459913,1746039039220,-151.0,0.00040314,14]
[359459914,1746039039230,-151.0,0.00040314,14]
[359459915,1746039039240,-151.0,0.00040314,14]
[359459916,1746039039251,-153.300879,0.00040314,14]
[359459917,1746039039261,-151.0,0.00040314,14]
[359459918,1746039039272,-151.0,0.00040314,14]
[359459919,1746039039285,-151.0,0.00040314,14]
[359459920,1746039039296,-151.0,0.00040314,14]
[359459921,1746039039307,-151.0,0.00040314,14]
[359459922,1746039039317,-159.0,0.00040314,20]
[359459923,1746039039327,-155.240488,0.00040314,14]
[359459924,1746039039338,-155.240488,0.00040314,14]
[359459925,1746039039348,-155.240488,0.00040314,14]
[359459926,1746039039359,-155.240488,0.00040314,14]
[359459927,1746039039368,-155.240488,0.00040314,14]
[359459928,1746039039380,-155.240488,0.00040314,14]
[359459929,1746039039390,-155.240488,0.00040314,14]
[359459930,1746039039400,-155.240488,0.00040314,14]
[359459931,1746039039411,-155.240488,0.00040314,14]
[359459932,1746039039422,-155.240488,0.00040314,14]
[359459933,1746039039434,-500.0,0.00040314,20]
[359459934,1746039039445,-500.0,0.00040314,20]
[359459935,1746039039455,-500.0,0.00040314,20]
[359459936,1746039039466,-500.0,0.00040314,20]
[359459937,1746039039478,-500.0,0.00040314,20]
[359459938,1746039039489,-500.0,0.00040314,20]
[359459939,1746039039500,-218.36393443,0.00040314,20]
[359459940,1746039039511,-500.0,0.00040314,5]
[359459941,1746039039523,-151.0,0.00040314,20]
[359459942,1746039039535,-207.5782219,0.00040314,20]
[359459943,1746039039546,-198.0,0.00040314,20]
[359459944,1746039039557,-151.0,0.00040314,20]
[359459945,1746039039567,-198.0,0.00040314,20]
[359459946,1746039039577,-151.0,0.00040314,20]
[359459947,1746039039588,-233.00000015,0.00040314,20]
[359459948,1746039039599,-151.0,0.00040314,20]
[359459949,1746039039611,-151.0,0.00040314,20]
[359459950,1746039039622,-151.0,0.00040314,20]
[359459951,1746039039632,-245.0,0.00040314,20]
[359459952,1746039039644,-226.48481533,0.00040318,31]
[359459953,1746039039655,-151.0,0.00040318,14]
[359459954,1746039039667,-198.804896,0.00040318,14]
[359459955,1746039039678,-151.0,0.00040318,14]
[359459956,1746039039690,-151.0,0.00040318,14]
[359459957,1746039039701,-151.0,0.00040318,14]
[359459958,1746039039712,-151.0,0.00040318,14]
[359459959,1746039039722,-151.0,0.00040318,14]
[359459960,1746039039731,-151.0,0.00040318,14]
[359459961,1746039039742,-456.895529,0.00040318,14]
[359459962,1746039039752,-456.895529,0.00040318,14]
[359459963,1746039039762,-456.895529,0.00040318,14]
[359459964,1746039039773,-456.895529,0.00040318,14]
[359459965,1746039039783,-456.895529,0.00040318,14]
[359459966,1746039039793,-456.895529,0.00040318,14]
[359459967,1746039039803,-456.895529,0.00040318,14]
[359459968,1746039039814,-456.895529,0.00040318,14]
[359459969,1746039039826,-456.895529,0.00040318,14]
[359459970,1746039039839,-456.895529,0.00040318,14]
[359459971,1746039039850,-456.895529,0.00040318,14]
[359459972,1746039039862,-456.895529,0.00040318,14]
[359459973,1746039039874,-151.0,0.00040318,14]
[359459974,1746039039884,-151.0,0.00040318,14]
[359459975,1746039039894,-1423.638007,0.00040318,2]
[359459976,1746039039905,-1423.638007,0.00040318,2]
[359459977,1746039039916,-1423.638007,0.00040318,2]
[359459978,1746039039926,-1423.638007,0.00040318,2]
[359459979,1746039039936,-1423.638007,0.00040318,2]
[359459980,1746039039946,-1423.638007,0.00040318,2]
[359459981,1746039039957,-1423.638007,0.00040318,2]
[359459982,1746039039967,-1423.638007,0.00040318,2]
[359459983,1746039039978,-1423.638007,0.00040318,2]
[359459984,1746039039987,-1423.638007,0.00040318,2]
[359459985,1746039039998,-1423.638007,0.00040318,2]
[359459986,1746039040008,-153.058669,0.00040318,14]
[359459987,1746039040017,-213.199249,0.00040318,14]
[359459988,1746039040028,-213.199249,0.00040318,14]
[359459989,1746039040039,-213.199249,0.00040318,14]
[359459991,1746039040049,-213.199249,0.00040318,14]
[359459993,1746039040060,-213.199249,0.00040318,14]
[359459994,1746039040070,-213.199249,0.00040318,14]
[359459995,1746039040080,-213.199249,0.00040318,14]
[359459996,1746039040090,-213.199249,0.00040318,14]
[359459997,1746039040103,-213.199249,0.00040318,14]
[359459998,1746039040114,-213.199249,0.00040318,14]
[359459999,1746039040124,-213.199249,0.00040318,14]
[359460000,1746039040134,-213.199249,0.00040318,14]
[359460001,1746039040145,-151.0,0.00040318,14]
[359460002,1746039040156,-151.0,0.00040318,14]
[359460003,1746039040166,-151.0,0.00040318,14]
[359460004,1746039040177,-151.0,0.00040318,14]
[359460005,1746039040188,-151.0,0.00040318,14]
[359460006,1746039040198,-190.134258,0.00040318,14]
[359460007,1746039040208,-181560.929483,0.00040318,2]
[359460008,1746039040219,-32948.46924314,0.00040318,3]
[359460009,1746039040228,-5941379.42878555,0.00040319,20]
[359460012,1746039040242,-9550.18431649,0.00040319,20]
[359460013,1746039040258,-5046.00188959,0.00040319,20]
[359460069,1746039040832,-171.28117356,0.00040204,28]
[359460071,1746039040842,-881.55808844,0.00040319,20]
[359460076,1746039040885,-461.36566633,0.00040319,20]
[359460079,1746039040898,-17940.76224028,0.00040319,20]
[359460344,1746039043597,-2706.93594032,0.00040319,20]
[359460351,1746039043649,-417.84001803,0.00040319,20]
[359460358,1746039043703,-500.0,0.00040319,20]
[359460637,1746039046522,-171.28117356,0.00040219,28]
[359460639,1746039046533,-1156.34956739,0.00040319,20]
[359460666,1746039046783,-34691.21655448,0.00040319,20]
[359460668,1746039046795,-11472.072929,0.00040319,20]
[359460670,1746039046807,-1503.14143,0.00040319,20]
[359460673,1746039046818,-271.51753817,0.00040319,20]
[359460675,1746039046829,-1999.9223497,0.00040319,20]
[359460757,1746039047610,-5450.0,0.00040319,20]
[359460760,1746039047622,-1195.46,0.00040319,20]
[359462158,1746039146841,234.13453777,0.00036182,2]
[359462159,1746039603822,-163.88465173,0.000245,2]
[359462160,1746039607979,-151.06283301,0.000245,2]
[359462161,1746039611836,-175.1107754,0.000245,2]
[359462162,1746039616253,-379.92621908,0.000245,2]
[359462163,1746039619966,-238.28839356,0.00024499,2]
[359462164,1746039627553,-61.71160644,0.00024499,2]
[359462165,1746039627575,-174.93605871,0.000245,2]
[359462166,1746039631432,-165.84812085,0.000245,2]
[359462167,1746039634867,-300.0,0.000245,2]
[359462168,1746039639687,-679.8098109,0.000245,2]
[359462169,1746039644619,-236.57025733,0.00024499,2]
[359462170,1746039647906,-263.42974267,0.00024499,2]
[359462171,1746039647930,-36.57025733,0.00024499,2]
[359462172,1746039653866,-207.08093353,0.00024499,2]
[359462173,1746039657601,-232.50997298,0.00024499,2]
[359462174,1746039661538,-23.83883616,0.00024499,2]
[359462175,1746039661562,-252.30560862,0.00024499,2]
[359462176,1746039667367,-158.00743437,0.00024498,2]
[359462177,1746039672397,-141.99256563,0.00024498,2]
[359462178,1746039672419,-191.34558224,0.00024499,2]
[359462179,1746039683266,-170.55591138,0.00024499,2]
[359462180,1746039688683,-288.24465205,0.00024499,2]
[359462181,1746039691435,-176.75575591,0.00024499,2]
[359462182,1746039696327,-170.55591138,0.00024499,2]
[359462183,1746039696464,175.0,0.00040322,120]
[359462184,1746039702101,-529.44408862,0.00024499,2]
[359462185,1746039705350,-220.55591138,0.00024499,2]
[359462186,1746039709946,-166.1018682,0.00024499,2]
[359462187,1746039715392,-300.0,0.00024499,2]
[359462188,1746039718077,-24.59642639,0.00024499,2]
[359462189,1746039718105,-162.63491937,0.00024499,2]
[359462190,1746039723338,-164.58583996,0.00024498,2]
[359462191,1746039726504,-135.41416004,0.00024498,2]
[359462192,1746039726532,-85.05947201,0.00024499,2]
[359462193,1746039726558,-79.52636795,0.00024499,2]
[359462194,1746039733009,-269.49188558,0.00024499,2]
[359462195,1746039737757,-150.98174647,0.00024499,2]
[359462196,1746039737780,-7.8831952,0.00024499,2]
[359462197,1746039784058,-269.4918856,0.00024399,2]
[359462198,1746039918989,-150.0,0.00023624,2]
[359462199,1746039926001,-285.57025733,0.00023624,2]
[359462200,1746039932932,-433.61786433,0.00023624,2]
[359462201,1746039942541,-398.54916676,0.00023624,2]
[359462202,1746039950318,-236.57025733,0.00023624,2]
[359462203,1746039957263,-644.19232268,0.00023624,2]
[359462204,1746039960747,-180.83055779,0.00023624,2]
[359462205,1746039966118,-221.81705225,0.00023623,2]
[359462206,1746039975445,-78.18294775,0.00023623,2]
[359462207,1746039975468,-75.09731253,0.00023624,2]
[359462208,1746039980819,-168.31226255,0.00023624,2]
[359462209,1746039985602,-438.40403349,0.00023624,2]
[359462210,1746039995906,-415.79930677,0.00023624,2]
[359462211,1746040001806,-805.34016647,0.00023624,2]
[359462212,1746040005529,-300.0010559,0.00023624,2]
[359462213,1746040013806,-335.3980576,0.00023624,2]
[359462214,1746040017133,-1131.38889606,0.00023624,2]
[359462215,1746040024546,-443.90461392,0.00023624,2]
[359462216,1746040029830,-326.86521952,0.0002349,2]
[359462217,1746040030128,-758.42062958,0.0002349,2]
[359462218,1746040030151,-8837.11943969,0.00023624,2]
[359462219,1746040030173,-269.4918856,0.00024176,2]
[359462220,1746040030196,-300.0,0.00024275,2]
[359462221,1746040030218,-1296.716953,0.00024276,2]
[359462222,1746040030240,-300.0,0.00024472,2]
[359462223,1746040030261,-500.0,0.00024473,2]
[359462224,1746040030284,-500.0,0.00024473,2]
[359462225,1746040030306,-216.27916875,0.00024473,2]
[359462226,1746040031128,-221.4,0.00024473,2]
[359462227,1746040051098,-181.68736773,0.00024398,2]
[359462228,1746040051118,-64.98602161,0.00024399,2]
[359462229,1746040137780,-326.8652195,0.0002349,2]
[359462230,1746040145103,-108.1809335,0.0002349,2]
[359462231,1746040145125,-395.89480437,0.00024473,2]
[359462232,1746040145148,-300.0,0.00024498,2]
[359462233,1746040145168,-300.0,0.00024498,2]
[359462234,1746040145191,-666.52702235,0.00024498,2]
[359462235,1746040148123,-298.38871381,0.00024398,2]
[359462236,1746040148144,-533.47297765,0.00024498,2]
[359462237,1746040148165,-300.0,0.00024498,2]
[359462238,1746040148185,-2043.5282936,0.00024499,2]
[359462239,1746040148207,-500.0,0.00024499,2]
[359462240,1746040148227,-500.0,0.00024499,2]
[359462241,1746040148249,-500.0,0.00024499,2]
[359462242,1746040148270,-184.59642995,0.00024499,2]
[359462243,1746040148291,-500.0,0.00024499,2]
[359462244,1746040148313,-500.0,0.00024499,2]
[359462245,1746040148333,-500.0,0.00024499,2]
[359462246,1746040148356,-500.0,0.00024499,2]
[359462247,1746040148379,-500.0,0.00024499,2]
[359462248,1746040148401,-500.0,0.00024499,2]
[359462249,1746040148422,-500.0,0.00024499,2]
[359462250,1746040148448,-500.0,0.00024499,2]
[359462251,1746040148473,-357.38297279,0.00024499,2]
[359462252,1746040148498,-500.0,0.00024499,2]
[359462253,1746040148526,-500.0,0.00024499,2]
[359462254,1746040148549,-500.0,0.00024499,2]
[359462255,1746040148572,-500.0,0.00024499,2]
[359462256,1746040148594,-500.0,0.00024499,2]
[359462257,1746040148619,-500.0,0.00024499,2]
[359462258,1746040148640,-500.0,0.00024499,2]
[359462259,1746040148664,-500.0,0.00024499,2]
[359462260,1746040148686,-596.27725909,0.00024499,2]
[359462261,1746040148708,-85671.9063986,0.000245,2]
[359462262,1746040158123,-5791.22226626,0.000245,2]
[359462263,1746040158144,-781.46637868,0.000248,2]
[359462264,1746040158166,-2528.0,0.0002487,2]
[359462265,1746040158186,-152.0,0.00024883,2]
[359462266,1746040158208,-21602.8852193,0.000249,2]
[359462267,1746040158229,-500.0,0.00025133,2]
[359462268,1746040158249,-426.43397655,0.00025386,2]
[359462269,1746040158270,-192.0,0.00025443,2]
[359462270,1746040158291,-502.51377694,0.000258,2]
[359462271,1746040158312,-500.0,0.000258,2]
[359462272,1746040158333,-500.0,0.000258,2]
[359462273,1746040158355,-300.0,0.000258,2]
[359462274,1746040158377,-500.0,0.000258,2]
[359462275,1746040158401,-500.0,0.000258,2]
[359462276,1746040158425,-500.0,0.000258,2]
[359462277,1746040158446,-500.0,0.000258,2]
[359462278,1746040158471,-500.0,0.000264,2]
[359462279,1746040158493,-420.0,0.00026553,2]
[359462280,1746040158516,-420.0,0.00026553,2]
[359462281,1746040158539,-1680.0,0.00026674,2]
[359462282,1746040158559,-500.0,0.00026683,2]
[359462283,1746040158580,-500.0,0.00026683,2]
[359462284,1746040158601,-967.77006455,0.00027297,2]
[359462285,1746040158626,-544.213146,0.00027397,2]
[359462286,1746040158646,-193.188289,0.00027397,120]
[359462287,1746040158667,-500.0,0.00027417,5]
[359462288,1746040158687,-260.96931143,0.00027417,5]
[359462289,1746040158707,-500.0,0.00027417,5]
[359462290,1746040158728,-500.0,0.00027417,5]
[359462291,1746040158749,-500.0,0.00027417,5]
[359462292,1746040158939,-500.0,0.00027417,5]
[359462293,1746040158963,-500.0,0.00027417,5]
[359462294,1746040158986,-501.59403299,0.00027417,5]
[359462295,1746040159008,-458.80083307,0.00027417,5]
[359462296,1746040159030,-600.0,0.00027444,5]
[359462297,1746040159052,-280.0,0.00028781,2]
[359462298,1746040159073,-587.0,0.00028781,2]
[359462299,1746040159095,-1120.0,0.00029043,2]
[359462300,1746040159118,-900.0,0.00029088,5]
[359462301,1746040159138,-290.0,0.0003,2]
[359462302,1746040159161,-1200.0,0.00030732,5]
[359462303,1746040159183,-823.0,0.00031195,2]
[359462304,1746040159204,-321.48980918,0.00031279,5]
[359462305,1746040159230,-1000.0,0.00031279,2]
[359462306,1746040159252,-1000.0,0.00031279,5]
[359462307,1746040159274,-1000.0,0.00031279,5]
[359462308,1746040159296,-1000.0,0.00031279,5]
[359462309,1746040159317,-500.0,0.00032,5]
[359462310,1746040159337,-160.0,0.00032026,2]
[359462311,1746040159358,-160.0,0.00032026,2]
[359462312,1746040159382,-12592.61399441,0.00032026,2]
[359462313,1746040159403,-160.0,0.00032026,2]
[359462314,1746040159423,-160.0,0.00032026,2]
[359462315,1746040159445,-21602.8852193,0.00032153,2]
[359462316,1746040159473,-781.46637868,0.00032153,2]
[359462317,1746040159494,-500.0,0.00032163,5]
[359462318,1746040159515,-1500.0,0.00032375,5]
[359462319,1746040159537,-1000.0,0.00032896,5]
[359462320,1746040159556,-975.48291619,0.00032896,5]
[359462321,1746040159577,-1000.0,0.00032896,5]
[359462322,1746040159597,-1000.0,0.00032896,5]
[359462323,1746040159620,-8668.84,0.00033,7]
[359462324,1746040159640,-290.0,0.00033,2]
[359462325,1746040159663,-250.0,0.00033074,2]
[359462326,1746040159685,-544.213146,0.00033165,2]
[359462327,1746040159707,-2700.0,0.00033195,60]
[359462328,1746040159728,-2700.0,0.00033743,60]
[359462329,1746040159751,-1152.0,0.00033812,2]
[359462330,1746040159772,-292.7475352,0.00033918,2]
[359462331,1746040159794,-236.0,0.00033973,3]
[359462332,1746040159814,-1619.12543116,0.00034,30]
[359462333,1746040159835,-1403.20848731,0.00034019,5]
[359462334,1746040159858,-500.0,0.0003405,5]
[359462335,1746040159879,-500.0,0.0003405,5]
[359462336,1746040159899,-500.0,0.0003405,5]
[359462337,1746040159919,-500.0,0.0003405,5]
[359462338,1746040159939,-500.0,0.0003405,5]
[359462339,1746040159960,-300.0,0.0003405,5]
[359462340,1746040159980,-500.0,0.0003405,5]
[359462341,1746040160000,-2700.0,0.00034291,60]
[359462342,1746040160021,-2700.0,0.00034839,60]
[359462343,1746040160042,-435.046153,0.00035235,2]
[359462344,1746040160062,-155.0,0.00035616,2]
[359462345,1746040160083,-9928.2228587,0.00035854,2]
[359462346,1746040160104,-21602.8852193,0.0003589,3]
[359462347,1746040160126,-781.46637868,0.0003589,3]
[359462348,1746040160147,-532.32652206,0.00035899,15]
[359462349,1746040160168,-248.16916666,0.00035899,7]
[359462350,1746040160188,-21969.88472795,0.000359,30]
[359462351,1746040162096,-318.0,0.0003,2]
[359462352,1746040162118,-4844.10568221,0.000359,30]
[359462353,1746040164087,-3900.35681623,0.0003315,2]